bitfinex-derivatives/quotes_SOLF0:USTF0_20250127
["timestamp","ask_amount","ask_price","bid_price","bid_amount"]
[1737948603039,10.2829601,236.72,236.7,0.02811717]
[1737948603345,10.2829601,236.72,236.54,10.2829601]
[1737948603641,10.2829601,236.76,236.53,4.4897]
[1737948603642,10.2829601,236.66,236.53,4.4897]
[1737948604343,0.02785293,236.62,236.53,4.4897]
[1737948605747,0.02785293,236.62,236.58,4.2291]
[1737948606351,0.02785293,236.62,236.6,4.2286]
[1737948606549,5.293e-05,236.62,236.6,4.2286]
[1737948609444,5.293e-05,236.62,236.59,4.25635518]
[1737948610446,5.293e-05,236.62,236.59,0.02745518]
[1737948610647,5.293e-05,236.62,236.6,4.2288]
[1737948611650,5.293e-05,236.62,236.61,4.2286]
[1737948611844,5.293e-05,236.62,236.59,0.02745518]
[1737948612246,5.293e-05,236.62,236.61,4.2286]
[1737948613349,5.293e-05,236.62,236.59,0.02745518]
[1737948613653,10.2829601,236.6,236.59,0.02745518]
[1737948614447,4.22855293,236.62,236.59,0.02745518]
[1737948614950,5.293e-05,236.62,236.59,0.02745518]
[1737948616146,4.2286,236.61,236.59,0.02745518]
[1737948617953,4.2288,236.6,236.59,0.02745518]
[1737948618749,4.2291,236.58,236.44,4.4959]
[1737948618957,10.2829601,236.57,236.44,4.4959]
[1737948619359,10.2829601,236.57,236.52,4.23]
[1737948619557,10.2829601,236.57,236.44,4.4959]
[1737948619752,0.03051356,236.53,236.44,4.4959]
[1737948619959,0.03051356,236.53,236.52,4.2302]
[1737948621463,0.03051356,236.53,236.44,4.4959]
[1737948621669,0.03051356,236.53,236.5,4.2304]
[1737948621872,0.03051356,236.53,236.44,4.4959]
[1737948623968,0.03051356,236.53,236.46,4.2311]
[1737948624175,0.03051356,236.53,236.44,4.4959]
[1737948624773,0.03051356,236.53,236.5,4.2304]
[1737948625167,0.03051356,236.53,236.44,4.4959]
[1737948625168,4.26071356,236.53,236.47,4.2309]
[1737948625369,0.03051356,236.53,236.44,1.4004]
[1737948625764,0.03051356,236.53,236.39,10.2829601]
[1737948625964,4.2302,236.52,236.47,4.2309]
[1737948626570,14.5133601,236.51,236.37,1.3556]
[1737948626771,14.5133601,236.51,236.46,4.2311]
[1737948627271,14.54459106,236.51,236.46,4.2311]
[1737948628275,14.54459106,236.51,236.37,1.3556]
[1737948628477,14.5140601,236.48,236.42,4.2319]
[1737948628676,10.2829601,236.48,236.42,4.2319]
[1737948629075,4.2314,236.46,236.4,4.2322]
[1737948629278,1.6583,236.5,236.28,44.96017548]
[1737948629279,10.2829601,236.45,236.28,36.49137548]
[1737948629579,10.2829601,236.42,236.29,4.3671]
[1737948629774,0.03244211,236.39,236.37,4.2328]
[1737948630283,10.31540221,236.39,236.29,4.3671]
[1737948630771,10.31540221,236.39,236.34,4.2333]
[1737948632375,10.31540221,236.39,236.35,4.2332]
[1737948632577,10.2829601,236.39,236.35,4.2332]
[1737948632770,10.3143564,236.39,236.35,4.2332]
[1737948634280,10.2829601,236.36,236.23,4.6786]
[1737948634478,10.2829601,236.39,236.24,10.2829601]
[1737948634780,0.03088671,236.32,236.31,4.234]
[1737948634974,10.2829601,236.39,236.24,10.2829601]
[1737948635177,0.0268507,236.34,236.24,10.2829601]
[1737948635377,0.0268507,236.34,236.33,4.2336]
[1737948635977,0.0268507,236.34,236.31,4.2339]
[1737948636181,0.0268507,236.34,236.24,10.2829601]
[1737948636182,0.0268507,236.34,236.23,4.6786]
[1737948636681,0.0268507,236.34,236.33,4.2336]
[1737948638181,0.0268507,236.34,236.26,4.2348]
[1737948638387,10.2829601,236.32,236.23,2.9046]
[1737948639087,10.2829601,236.32,236.23,1.4567]
[1737948639587,14.5168601,236.32,236.27,4.2347]
[1737948639888,10.2829601,236.29,236.18,1.4246]
[1737948640279,4.2345,236.28,236.23,4.2353]
[1737948640482,0.03071409,236.26,236.18,1.4246]
[1737948640784,10.31367419,236.26,236.18,1.4246]
[1737948640977,4.2351,236.25,236.18,4.2362]
[1737948641281,10.31367419,236.26,236.15,1.3807]
[1737948641487,14.5183601,236.23,236.18,4.2363]
[1737948641979,14.5480011,236.23,236.18,4.2363]
[1737948642286,10.3126011,236.23,236.08,10.2829601]
[1737948642487,10.2829601,236.2,236.06,3.1023]
[1737948642783,0.02998935,236.15,236.06,3.1023]
[1737948643086,8.935e-05,236.15,236.14,4.237]
[1737948655188,8.935e-05,236.15,236.14,14.5199601]
[1737948655389,10.2829601,236.33,236.29,4.2343]
[1737948655589,10.2829601,236.33,236.18,4.7266]
[1737948655886,3.1947,236.38,236.32,4.2338]
[1737948656090,10.2829601,236.36,236.2,10.2829601]
[1737948656586,10.2829601,236.36,236.35,4.2332]
[1737948656792,0.02987825,236.38,236.27,10.2829601]
[1737948656990,10.2829601,236.43,236.41,4.2321]
[1737948657190,10.2829601,236.43,236.28,4.7266]
[1737948657191,7.841e-05,236.35,236.28,4.7266]
[1737948657386,10.2829601,236.43,236.28,4.7266]
[1737948657586,10.2829601,236.4,236.28,4.7266]
[1737948657784,10.2829601,236.37,236.21,10.2829601]
[1737948657983,10.2829601,236.33,236.22,1.4451]
[1737948658185,10.2829601,236.36,236.22,1.4451]
[1737948658384,7.314e-05,236.3,236.25,0.02954299]
[1737948658585,7.314e-05,236.3,236.26,10.2829601]
[1737948658790,7.314e-05,236.3,236.27,3.0597]
[1737948659289,7.314e-05,236.3,236.29,4.2343]
[1737948673611,7.314e-05,236.3,236.25,10.31250309]
[1737948673612,7.314e-05,236.3,236.25,0.02954299]
[1737948673812,10.2829601,236.29,236.25,0.02954299]
[1737948674618,10.2829601,236.29,236.25,4.26454299]
[1737948675307,10.2829601,236.29,236.25,0.02954299]
[1737948675911,4.2347,236.27,236.25,0.02954299]
[1737948677421,1.6479,236.28,236.09,3.1105]
[1737948677621,1.6479,236.28,236.17,4.2363]
[1737948677622,10.2829601,236.25,236.17,4.2363]
[1737948677814,10.2829601,236.25,236.09,4.5933]
[1737948678017,4.2354,236.23,236.09,4.5933]
[1737948678319,10.2829601,236.3,236.13,10.2829601]
[1737948678717,0.02729949,236.24,236.19,0.02704691]
[1737948678918,0.02729949,236.24,236.23,4.2354]
[1737948687425,9.949e-05,236.24,236.23,4.2354]
[1737948688224,10.2829601,236.44,236.21,10.2829601]
[1737948688527,10.2829601,236.44,236.28,10.2829601]
[1737948688923,10.2829601,236.44,236.36,4.2329]
[1737948689423,10.2829601,236.44,236.28,10.2829601]
[1737948689424,4.26285502,236.42,236.38,0.03081796]
[1737948690317,4.2322,236.41,236.38,0.03081796]
[1737948690523,13.4648601,236.41,236.22,10.2829601]
[1737948690724,10.2829601,236.36,236.22,10.2829601]
[1737948691029,10.2829601,236.36,236.2,1.711]
[1737948691030,4.2335,236.34,236.2,1.711]
[1737948691227,10.2829601,236.33,236.2,1.711]
[1737948691528,10.2829601,236.33,236.26,4.2348]
[1737948691829,0.02856932,236.29,236.24,0.02872843]
[1737948692023,0.02856932,236.29,236.24,4.26372843]
[1737948692219,0.02856932,236.29,236.24,0.02872843]
[1737948692723,0.02856932,236.29,236.28,4.2345]
[1737948698923,0.02856932,236.29,236.24,0.02872843]
[1737948700828,0.02856932,236.29,236.27,4.2345]
[1737948701023,0.02856932,236.29,236.24,0.02872843]
[1737948701229,4.2345,236.28,236.24,0.02872843]
[1737948701533,0.02856932,236.29,236.24,0.02872843]
[1737948701832,4.235,236.25,236.24,0.02872843]
[1737948702019,10.2829601,236.25,236.1,10.2829601]
[1737948702419,4.2357,236.21,236.16,4.2365]
[1737948702628,10.2829601,236.25,236.1,10.2829601]
[1737948703328,0.02796262,236.2,236.15,0.02809367]
[1737948703529,0.02796262,236.2,236.17,4.2364]
[1737948703827,0.02796262,236.2,236.15,0.02809367]
[1737948705129,0.02796262,236.2,236.16,4.2366]
[1737948706127,0.02796262,236.2,236.17,4.2365]
[1737948706728,0.02796262,236.2,236.18,4.2362]
[1737948708529,0.02796262,236.2,236.17,4.2364]
[1737948709033,0.02796262,236.2,236.15,0.02809367]
[1737948709233,4.26396262,236.2,236.15,4.26479367]
[1737948710132,0.02796262,236.2,236.15,0.02809367]
[1737948710734,4.26406262,236.2,236.15,4.26489367]
[1737948712033,0.02796262,236.2,236.15,0.02809367]
[1737948712630,0.02796262,236.2,236.15,4.26489367]
[1737948712930,0.02796262,236.2,236.15,0.02809367]
[1737948713132,0.02796262,236.2,236.19,4.2361]
[1737948713435,0.02796262,236.2,236.15,0.02809367]
[1737948713630,0.02796262,236.2,236.16,4.2366]
[1737948713826,0.02796262,236.2,236.15,0.02809367]
[1737948714227,0.02796262,236.2,236.19,4.2361]
[1737948714431,6.262e-05,236.2,236.19,4.2361]
[1737948717137,6.262e-05,236.2,236.18,4.2363]
[1737948717330,6.262e-05,236.2,236.15,0.02809367]
[1737948717635,4.23606262,236.2,236.15,0.02809367]
[1737948717836,6.262e-05,236.2,236.15,0.02809367]
[1737948718640,6.262e-05,236.2,236.15,4.26489367]
[1737948719839,4.2361,236.19,236.15,4.26489367]
[1737948720041,4.2361,236.19,236.15,0.02809367]
[1737948720634,4.2361,236.19,236.15,4.26489367]
[1737948721243,6.262e-05,236.2,236.15,4.26489367]
[1737948721440,6.262e-05,236.2,236.15,0.02809367]
[1737948721739,6.262e-05,236.2,236.19,4.2361]
[1737948724944,1.4465,236.39,236.18,10.2829601]
[1737948725135,1.4465,236.39,236.25,10.2829601]
[1737948725334,11.7294601,236.39,236.27,4.2345]
[1737948725741,11.7294601,236.39,236.21,10.2829601]
[1737948725742,4.2334,236.34,236.21,10.2829601]
[1737948725944,10.31499846,236.35,236.31,0.02791513]
[1737948726136,10.2829601,236.32,236.17,1.7086]
[1737948726336,14.5167601,236.32,236.31,0.0308705]
[1737948726535,10.2829601,236.32,236.21,4.2357]
[1737948726737,10.2829601,236.32,236.17,1.7086]
[1737948726940,4.235,236.26,236.17,1.7086]
[1737948727243,4.235,236.26,236.19,4.2361]
[1737948727738,0.02711541,236.25,236.2,0.02746441]
[1737948728937,0.02711541,236.25,236.2,4.26326441]
[1737948729543,0.02711541,236.25,236.2,0.02746441]
[1737948730438,10.31007551,236.25,236.2,0.02746441]
[1737948730845,4.2353,236.24,236.2,0.02746441]
[1737948731040,10.31007551,236.25,236.2,0.02746441]
[1737948732445,4.2357,236.22,236.2,0.02746441]
[1737948732953,4.2357,236.21,236.2,0.02746441]
[1737948733145,10.31007551,236.25,236.2,0.02746441]
[1737948733349,4.2356,236.22,236.2,0.02746441]
[1737948734149,10.31007551,236.25,236.2,0.02746441]
[1737948734352,4.2357,236.21,236.2,0.02746441]
[1737948738754,4.2366,236.17,236.09,2.9241]
[1737948738955,10.2829601,236.22,236.09,1.4369]
[1737948739156,10.2829601,236.22,236.05,11.9984601]
[1737948739550,10.2829601,236.22,236.12,4.2374]
[1737948740053,4.2368,236.15,236.1,4.2376]
[1737948740358,10.2829601,236.13,236.01,10.55632544]
[1737948740754,0.03105752,236.09,236.01,10.55632544]
[1737948740952,10.31401762,236.09,236.01,10.55632544]
[1737948741160,10.31401762,236.09,235.96,14.7201601]
[1737948741161,4.2388,236.04,235.98,4.2397]
[1737948741355,10.31401762,236.09,235.93,167.4666949]
[1737948741858,4.2389,236.04,235.97,4.24]
[1737948742459,10.2829601,236.05,235.93,167.4666949]
[1737948742659,4.2391,236.03,235.93,167.4666949]
[1737948743159,0.03120171,236.04,235.95,10.2829601]
[1737948743861,0.03120171,236.04,236.01,4.2393]
[1737948744761,0.03120171,236.04,235.99,4.2396]
[1737948745059,10.31416181,236.04,235.89,4.4559]
[1737948745653,14.55306181,236.04,235.97,4.24]
[1737948745854,10.31416181,236.04,235.97,4.24]
[1737948746456,0.03120171,236.04,235.91,10.2829601]
[1737948747359,0.03120171,236.04,236.01,4.2393]
[1737948748757,0.03120171,236.04,236.03,4.239]
[1737948755767,0.03120171,236.04,235.89,4.4559]
[1737948755768,0.03120171,236.04,236.0,1004.2394]
[1737948756663,10.2829601,236.03,236.0,1000.0]
[1737948756861,4.2392,236.02,236.0,1000.0]
[1737948757058,10.2829601,236.03,236.0,1000.0]
[1737948757261,0.03120171,236.04,236.0,1000.0]
[1737948757863,0.03120171,236.04,236.03,4.239]
[1737948759368,0.03120171,236.04,236.01,4.2393]
[1737948759661,0.03120171,236.04,236.0,1000.0]
[1737948760064,4.239,236.03,236.0,1000.0]
[1737948760465,10.2829601,236.02,236.0,1000.0]
[1737948762172,4.2393,236.01,236.0,1000.0]
[1737948764075,0.03120171,236.04,236.0,1000.0]
[1737948764968,4.239,236.03,236.0,1000.0]
[1737948765270,0.03120171,236.04,236.0,1000.0]
[1737948766473,0.03120171,236.04,236.01,4.2393]
[1737948766673,0.03120171,236.04,236.0,1000.0]
[1737948767874,0.03120171,236.04,236.02,4.2391]
[1737948769375,0.03120171,236.04,236.01,4.2393]
[1737948770175,0.03120171,236.04,236.03,4.239]
[1737948771579,0.03120171,236.04,236.0,1000.0]
[1737948772872,0.03120171,236.04,236.03,4.239]
[1737948773775,10.2829601,236.17,236.01,13.1325601]
[1737948773975,10.2829601,236.21,236.04,10.2829601]
[1737948774176,10.2829601,236.18,236.08,4.2381]
[1737948774376,10.2829601,236.15,236.01,14.7910601]
[1737948774571,10.2829601,236.15,236.01,25.342879]
[1737948774769,0.03018079,236.1,236.07,4.2382]
[1737948774976,0.03018079,236.1,236.06,0.0287906]
[1737948775375,10.2829601,236.18,236.14,4.2368]
[1737948775782,10.2829601,236.18,236.15,4.2367]
[1737948776182,10.2829601,236.21,236.05,10.2829601]
[1737948776680,0.02713161,236.15,236.11,0.02961569]
[1737948776878,10.2829601,236.17,236.01,25.342879]
[1737948777072,0.03258056,236.15,236.11,0.03163334]
[1737948777484,10.2829601,236.13,236.11,0.03163334]
[1737948777984,14.5201601,236.13,236.11,0.03163334]
[1737948778880,10.2829601,236.13,236.11,0.03163334]
[1737948779082,4.2374,236.12,236.11,0.03163334]
[1737948779589,4.2374,236.12,236.01,4.5081]
[1737948779590,10.2829601,236.09,236.02,4.2391]
[1737948780090,4.2383,236.07,236.01,4.5081]
[1737948780388,10.2829601,236.09,236.01,4.5081]
[1737948780581,0.02911736,236.06,236.02,0.03006493]
[1737948781086,0.02911736,236.06,236.05,4.2386]
[1737948781589,13.6629601,236.13,236.02,0.03006493]
[1737948782890,0.02951504,236.1,236.02,0.03006493]
[1737948783485,0.02951504,236.1,236.04,4.2387]
[1737948783689,0.02951504,236.1,236.02,0.03006493]
[1737948784287,10.2829601,236.17,236.02,0.03006493]
[1737948784492,10.2829601,236.17,236.01,14.7910601]
[1737948784995,10.2829601,236.17,236.12,4.2373]
[1737948785195,13.6629601,236.21,236.05,10.2829601]
[1737948785489,10.2829601,236.21,236.16,4.2366]
[1737948785892,10.2829601,236.18,236.02,10.2829601]
[1737948786094,4.2365,236.17,236.16,0.03142057]
[1737948786290,0.03048418,236.12,236.09,4.2379]
[1737948786695,0.03048418,236.12,236.08,0.03093939]
[1737948787394,10.31344428,236.12,236.08,0.03093939]
[1737948789297,14.55084428,236.12,236.08,0.03093939]
[1737948790499,10.2829601,236.09,236.08,0.03093939]
[1737948792298,0.03048418,236.12,236.08,0.03093939]
[1737948793797,0.03048418,236.12,236.09,4.2379]
[1737948794097,0.03048418,236.12,236.08,0.03093939]
[1737948794494,0.03048418,236.12,236.11,4.2375]
[1737948794693,10.2829601,236.2,236.08,0.03093939]
[1737948794899,10.2829601,236.24,236.08,0.03093939]
[1737948795100,10.2829601,236.16,236.01,15.10767851]
[1737948795700,10.2829601,236.16,236.01,4.5081]
[1737948796003,0.0268228,236.11,236.09,4.2378]
[1737948796397,0.0268228,236.11,236.06,0.03015546]
[1737948796700,0.0268228,236.11,236.08,4.238]
[1737948801498,0.0268228,236.11,236.06,0.03015546]
[1737948802602,6.64300939,236.11,236.06,0.03015546]
[1737948803004,6.64300939,236.11,236.08,4.2379]
[1737948803408,6.64300939,236.11,236.06,0.03015546]
[1737948805304,6.64300939,236.11,236.1,4.2377]
[1737948809015,6.64300939,236.11,236.08,4.2379]
[1737948810610,4.43080939,236.11,236.08,4.2379]
[1737948810815,4.2372,236.13,236.06,0.03015546]
[1737948810816,6.61618659,236.14,236.06,0.03015546]
[1737948811115,6.61618659,236.14,236.05,6.61618659]
[1737948811814,6.61618659,236.14,236.13,4.2372]
[1737948812005,6.61618659,236.2,236.11,6.61618659]
[1737948812210,6.61618659,236.2,236.12,1.7089]
[1737948812610,10.32921417,236.24,236.12,1.7089]
[1737948812808,14.56441417,236.24,236.18,4.2361]
[1737948813310,0.02805606,236.23,236.19,0.02719257]
[1737948815917,10.32921417,236.21,236.19,0.02719257]
[1737948816216,4.2359,236.2,236.19,0.02719257]
[1737948816418,10.32921417,236.18,236.14,4.2369]
[1737948816918,14.56561417,236.18,236.12,4.2372]
[1737948817110,10.32921417,236.18,236.09,1.452]
[1737948817516,0.0308262,236.16,236.11,0.03165879]
[1737948819120,0.0308262,236.16,236.13,4.2371]
[1737948819916,10.32921417,236.15,236.11,0.03165879]
[1737948820117,10.32921417,236.12,236.11,0.03165879]
[1737948821814,10.32921417,236.12,236.07,4.2382]
[1737948822021,10.32921417,236.12,236.03,1.4636]
[1737948822822,10.32921417,236.12,236.05,4.2386]
[1737948822823,4.2377,236.11,236.05,4.2386]
[1737948823023,0.02818005,236.1,236.05,4.26641464]
[1737948824822,10.32921417,236.08,236.05,0.02781464]
[1737948825027,4.2383,236.07,236.05,0.02781464]
[1737948825818,10.32921417,236.08,236.05,0.02781464]
[1737948825819,4.2384,236.06,236.05,0.02781464]
[1737948826618,10.32921417,236.08,235.99,4.2395]
[1737948826821,14.56801417,236.04,235.92,1.6339]
[1737948827017,10.32921417,236.04,235.92,1.6339]
[1737948827223,10.32921417,236.08,235.93,10.32921417]
[1737948827825,0.02957684,236.06,236.02,4.26795972]
[1737948828727,0.02957684,236.06,236.02,0.02885972]
[1737948831028,4.2386,236.05,236.02,0.02885972]
[1737948831230,0.02957684,236.06,236.02,0.02885972]
[1737948832129,0.02957684,236.06,236.02,4.26795972]
[1737948833229,0.02957684,236.06,236.02,0.02885972]
[1737948834629,10.32921417,236.05,236.02,0.02885972]
[1737948835335,4.239,236.03,236.02,0.02885972]
[1737948836531,10.86136842,236.03,236.02,0.02885972]
[1737948838623,14.5870067,236.03,236.02,0.02885972]
[1737948838833,10.3480067,236.03,236.0,903.35066568]
[1737948839127,4.2393,236.01,236.0,903.35066568]
[1737948839927,4.2393,236.01,236.0,901.17196568]
[1737948840525,4.2393,236.01,236.0,898.99326568]
[1737948841529,4.2393,236.01,236.0,898.96440596]
[1737948841834,4.2393,236.01,236.0,801.67567164]
[1737948842231,4.2393,236.01,236.0,748.36833666]
[1737948842429,4.2393,236.01,236.0,741.62573666]
[1737948844343,4.2393,236.01,236.0,741.59687694]
[1737948844845,4.2393,236.01,236.0,611.43290764]
[1737948848047,4.2393,236.01,236.0,514.7547136]
[1737948848249,14.5871067,236.03,236.0,514.7547136]
[1737948848546,6.4516,236.05,236.0,514.7547136]
[1737948848751,4.2388,236.04,236.0,514.7547136]
[1737948849942,4.239,236.03,236.0,514.7547136]
[1737948852551,4.2392,236.02,236.0,514.7547136]
[1737948854555,4.2393,236.01,236.0,514.7547136]
[1737948857752,4.2393,236.01,236.0,394.62301956]
[1737948857947,4.2393,236.01,236.0,377.40111956]
[1737948858148,4.2393,236.01,236.0,369.34541956]
[1737948859153,4.2393,236.01,236.0,322.74888458]
[1737948860553,4.2393,236.01,236.0,259.58532552]
[1737948861358,4.2393,236.01,236.0,219.58089054]
[1737948861555,4.2393,236.01,236.0,191.09829054]
[1737948861753,4.2393,236.01,236.0,150.46825556]
[1737948862658,10.86753046,236.01,236.0,150.46825556]
[1737948863458,10.86753046,236.01,236.0,134.56280024]
[1737948864157,10.86753046,236.01,236.0,101.04816526]
[1737948864755,10.86753046,236.01,236.0,67.53353028]
[1737948866557,10.86753046,236.01,236.0,51.62807496]
[1737948867257,10.86753046,236.01,236.0,18.11343998]
[1737948867858,6.62823046,235.99,235.89,6.62823046]
[1737948868059,6.62823046,235.99,235.91,6.62823046]
[1737948868354,6.62823046,235.99,235.95,4.2403]
[1737948868653,6.62823046,235.99,235.89,6.62823046]
[1737948869056,0.02942306,235.96,235.92,4.26900224]
[1737948869658,0.02942306,235.96,235.92,10.8972327]
[1737948870359,9.98823046,236.03,235.94,6.62823046]
[1737948870551,6.62823046,236.07,235.98,6.62823046]
[1737948870751,3.36,236.06,235.98,6.62823046]
[1737948871350,6.62823046,236.05,236.0,0.03109928]
[1737948871556,0.0291087,236.04,236.0,0.03109928]
[1737948871953,6.62823046,236.02,236.0,0.03109928]
[1737948873656,4.2393,236.01,236.0,0.03109928]
[1737948876765,4.2404,235.95,235.91,1.3491]
[1737948876957,6.62823046,235.96,235.91,1.3491]
[1737948877964,10.89538631,235.96,235.91,1.37659314]
[1737948878662,4.26715585,235.96,235.91,1.37659314]
[1737948878865,4.26715585,235.96,235.91,0.02749314]
[1737948879364,0.02695585,235.96,235.91,0.02749314]
[1737948880455,3.36,236.03,235.91,10.3808089]
[1737948880660,3.36,236.04,235.92,2.9606]
[1737948881356,3.36,236.04,235.95,4.2402]
[1737948881561,0.02881452,236.0,235.96,0.03127424]
[1737948881957,3.36,236.04,235.96,0.03127424]
[1737948882156,3.36,236.04,235.97,4.24]
[1737948882462,3.36,236.04,235.96,0.03127424]
[1737948883061,0.0294747,236.02,235.96,0.03127424]
[1737948884667,4.2687747,236.02,235.96,0.03127424]
[1737948887765,0.0294747,236.02,235.96,0.03127424]
[1737948888169,10.35331576,236.07,235.96,0.03127424]
[1737948888370,10.35331576,236.07,235.94,1.3173]
[1737948889069,14.59171576,236.07,235.98,4.2398]
[1737948889269,0.03230418,236.03,235.98,4.2673731]
[1737948889867,0.03230418,236.03,235.98,0.0275731]
[1737948891168,4.27130418,236.03,235.98,0.0275731]
[1737948891370,0.03230418,236.03,235.98,0.0275731]
[1737948891670,14.59091576,236.11,236.01,4.2392]
[1737948891872,10.35331576,236.11,235.94,11.67061576]
[1737948892477,10.35331576,236.11,236.0,4.2395]
[1737948892671,0.0311302,236.05,236.0,0.02931162]
[1737948895278,0.0311302,236.05,236.0,4.26881162]
[1737948895775,10.38444596,236.05,236.0,0.02931162]
[1737948896078,10.35331576,236.02,236.0,0.02931162]
[1737948896474,4.2393,236.01,236.0,0.02931162]
[1737948896672,10.35331576,236.02,236.0,0.02931162]
[1737948898178,14.59251576,236.02,236.0,0.02931162]
[1737948899774,4.2393,236.01,236.0,0.02931162]
[1737948900081,10.35331576,236.02,236.0,0.02931162]
[1737948900781,4.2393,236.01,236.0,0.02931162]
[1737948902380,10.35331576,236.02,235.92,2.9606]
[1737948902676,6.62744469,235.94,235.86,1.4081]
[1737948902872,6.62744469,235.94,235.86,4.4201]
[1737948903282,6.62744469,235.94,235.87,4.2417]
[1737948903484,0.03033057,235.92,235.88,0.02781364]
[1737948904382,0.03033057,235.92,235.88,4.26941364]
[1737948904883,6.65777526,235.92,235.88,0.02781364]
[1737948905785,6.62744469,235.9,235.88,0.02781364]
[1737948906187,6.62744469,235.9,235.74,10.87144469]
[1737948906385,6.62744469,235.84,235.74,6.62744469]
[1737948906582,4.2419,235.87,235.72,14.90761898]
[1737948906884,10.36321898,235.88,235.72,14.90761898]
[1737948907085,10.36321898,235.91,235.75,10.36321898]
[1737948907276,4.2415,235.9,235.79,4.2433]
[1737948907481,0.0285487,235.85,235.81,0.02699516]
[1737948909085,10.36321898,235.95,235.88,4.2417]
[1737948909285,13.70321898,235.98,235.88,4.2417]
[1737948909479,13.70321898,235.98,235.82,2.917]
[1737948909882,10.36321898,235.95,235.82,2.917]
[1737948910087,10.36321898,235.92,235.82,2.917]
[1737948910282,0.029233,235.91,235.86,0.02717767]
[1737948910785,0.029233,235.91,235.87,4.2418]
[1737948910985,0.029233,235.91,235.86,0.02717767]
[1737948912888,0.029233,235.91,235.9,4.2413]
[1737948913089,3.34,235.98,235.9,4.2413]
[1737948913588,13.48781898,236.03,235.86,10.36321898]
[1737948913885,10.36321898,236.03,235.9,10.36321898]
[1737948914087,10.36321898,236.03,235.91,2.9235]
[1737948914293,0.02893782,235.99,235.94,0.02755129]
[1737948915592,10.3921568,235.99,235.94,0.02755129]
[1737948917194,10.36321898,235.95,235.83,2.9235]
[1737948917586,4.2408,235.93,235.84,4.2423]
[1737948917989,10.36321898,235.95,235.83,2.9235]
[1737948918387,0.02837007,235.91,235.87,0.03100264]
[1737948918796,0.02837007,235.91,235.9,4.2413]
[1737948919292,10.36321898,235.99,235.87,0.03100264]
[1737948920396,0.03214454,235.95,235.87,0.03100264]
[1737948920697,0.03214454,235.95,235.92,4.2408]
[1737948921098,0.03214454,235.95,235.87,0.03100264]
[1737948921297,0.03214454,235.95,235.91,4.2411]
[1737948921694,0.03214454,235.95,235.87,0.03100264]
[1737948922395,0.03214454,235.95,235.9,4.2413]
[1737948922997,0.03214454,235.95,235.92,4.2409]
[1737948923196,0.03214454,235.95,235.87,0.03100264]
[1737948923592,0.03214454,235.95,235.89,4.2414]
[1737948923898,0.03214454,235.95,235.87,0.03100264]
[1737948924296,0.03214454,235.95,235.92,4.2409]
[1737948925195,0.03214454,235.95,235.93,4.2407]
[1737948925402,13.33081898,236.04,235.87,0.03100264]
[1737948925597,13.33081898,236.04,235.85,10.36321898]
[1737948925897,11.98441898,236.04,236.0,4.2395]
[1737948926103,11.98441898,236.04,235.89,10.36321898]
[1737948926600,0.03153094,235.99,235.94,0.0281646]
[1737948928604,0.03153094,235.99,235.98,4.2399]
[1737948930012,0.03153094,235.99,235.94,0.0281646]
[1737948930812,0.03153094,235.99,235.94,4.2685646]
[1737948931810,0.03153094,235.99,235.94,0.0281646]
[1737948932411,0.03153094,235.99,235.97,4.24]
[1737948932814,0.03153094,235.99,235.94,0.0281646]
[1737948933208,0.03153094,235.99,235.94,4.2685646]
[1737948933918,0.03153094,235.99,235.98,4.2399]
[1737948935217,0.03153094,235.99,235.94,0.0281646]
[1737948936412,0.03153094,235.99,235.95,4.2404]
[1737948938313,0.03153094,235.99,235.98,4.2399]
[1737948941612,0.03153094,235.99,235.94,0.0281646]
[1737948943020,0.03153094,235.99,235.96,4.2401]
[1737948943221,10.36321898,236.04,235.94,0.0281646]
[1737948943420,10.36321898,236.08,235.94,0.0281646]
[1737948943622,14.60131898,236.08,236.01,4.2393]
[1737948943823,10.36321898,236.08,235.93,2.9122]
[1737948944120,10.36321898,236.08,236.02,4.239]
[1737948944320,10.36321898,236.16,235.99,10.36321898]
[1737948944521,0.0296277,236.07,236.03,0.03219459]
[1737948944725,10.36321898,236.16,236.03,0.03219459]
[1737948944914,10.36321898,236.16,236.03,3.04419459]
[1737948946025,0.03036399,236.12,236.03,3.04419459]
[1737948946727,0.03036399,236.12,236.05,4.2386]
[1737948946918,0.03036399,236.12,236.03,3.04419459]
[1737948948421,0.03036399,236.12,236.08,4.2381]
[1737948950327,0.03036399,236.12,236.09,4.2378]
[1737948950929,0.03036399,236.12,236.08,0.03209962]
[1737948951829,0.03036399,236.12,236.08,4.27009962]
[1737948953426,0.03036399,236.12,236.09,4.2378]
[1737948955028,0.03036399,236.12,236.08,0.03209962]